bitfinex/quotes_BTCUSD_20230405
["timestamp","ask_amount","ask_price","bid_price","bid_amount"]
[1680698739781,0.12259157,28473.0,28470.0,4.87]
[1680698739989,0.008177,28472.0,28469.0,0.00018]
[1680698740200,0.00878,28471.0,28467.0,0.08395679]
[1680698740472,0.15067681,28471.0,28467.0,0.08395679]
[1680698740684,0.00878,28471.0,28467.0,0.00018]
[1680698740891,0.00878,28471.0,28466.0,0.08395679]
[1680698741091,0.15067681,28471.0,28466.0,0.08395679]
[1680698741294,0.15367681,28471.0,28466.0,0.08395679]
[1680698741505,0.01178,28471.0,28465.0,0.21001197]
[1680698741715,0.01178,28471.0,28465.0,0.20989197]
[1680698741716,0.15067681,28471.0,28465.0,0.20989197]
[1680698741923,0.15367681,28471.0,28465.0,0.08395679]
[1680698742123,0.15367681,28471.0,28466.0,0.08395679]
[1680698742378,0.01178,28471.0,28466.0,0.08395679]
[1680698742578,0.01178,28471.0,28465.0,0.08395679]
[1680698742728,0.15367681,28471.0,28465.0,0.08395679]
[1680698743107,0.14489681,28471.0,28465.0,0.17048961]
[1680698743318,0.003,28471.0,28465.0,0.17048961]
[1680698743528,0.14489681,28471.0,28465.0,0.17048961]
[1680698744151,0.35471056,28470.0,28465.0,0.08395679]
[1680698744362,0.36349156,28470.0,28465.0,0.08395679]
[1680698744563,0.35471056,28470.0,28465.0,0.08395679]
[1680698745307,0.35464873,28470.0,28465.0,0.08395679]
[1680698745524,0.35455308,28470.0,28465.0,0.08413679]
[1680698745746,0.04928579,28469.0,28465.0,0.08413679]
[1680698745947,0.04928579,28469.0,28465.0,0.00018]
[1680698745948,0.1911826,28469.0,28465.0,0.00018]
[1680698746170,0.1999636,28469.0,28465.0,0.00018]
[1680698746378,0.1999636,28469.0,28464.0,0.02198]
[1680698746379,0.04928579,28469.0,28464.0,0.02198]
[1680698746597,0.1911826,28469.0,28464.0,0.02198]
[1680698747057,0.2029636,28469.0,28464.0,0.02198]
[1680698747268,0.1999636,28469.0,28464.0,0.02192]
[1680698747478,0.06106679,28469.0,28464.0,0.02192]
[1680698747683,0.05806679,28469.0,28464.0,0.0218]
[1680698747887,0.06106679,28469.0,28464.0,0.0218]
[1680698748118,0.1999636,28469.0,28464.0,0.0218]
[1680698748329,0.05806679,28469.0,28464.0,0.0218]
[1680698748997,0.008126,28468.0,28464.0,0.0218]
[1680698749590,0.016907,28468.0,28464.0,0.0218]
[1680698749792,0.04888818,28467.0,28464.0,0.0218]
[1680698749951,0.008781,28468.0,28464.0,0.0218]
[1680698750325,0.007787,28467.0,28464.0,0.0218]
[1680698750940,0.016569,28467.0,28464.0,0.0218]
[1680698752394,0.098669,28467.0,28464.0,0.0218]
[1680698753085,0.04821871,28466.0,28464.0,0.0218]
[1680698753276,0.07456471,28466.0,28464.0,0.0218]
[1680698753931,0.0821,28465.0,28464.0,0.0218]
[1680698754140,0.090882,28465.0,28464.0,0.0218]
[1680698754372,0.008782,28465.0,28464.0,0.0218]
[1680698754583,0.05800071,28466.0,28464.0,0.0218]
[1680698755003,0.001,28466.0,28464.0,0.0218]
[1680698755424,0.36449256,28466.0,28464.0,0.0218]
[1680698756085,0.36349256,28466.0,28464.0,0.0218]
[1680698756296,0.43770612,28465.0,28464.0,0.0218]
[1680698756516,0.44559256,28465.0,28464.0,0.0218]
[1680698757264,0.00010531,28466.0,28464.0,0.0218]
[1680698757483,0.089187,28467.0,28464.0,0.0218]
[1680698757484,0.007787,28467.0,28464.0,0.0218]
[1680698758908,0.04674217,28466.0,28464.0,0.0218]
[1680698759337,0.40145273,28466.0,28464.0,0.0218]
[1680698759577,0.41023473,28466.0,28464.0,0.0218]
[1680698760659,0.35471056,28465.0,28464.0,0.0218]
[1680698760823,0.35471056,28465.0,28464.0,0.01715966]
[1680698761045,0.36349256,28465.0,28464.0,0.01715966]
[1680698761618,0.12814217,28466.0,28464.0,0.01715966]
[1680698761854,0.04574234,28465.0,28464.0,0.01258543]
[1680698762046,0.44489256,28466.0,28464.0,0.01258543]
[1680698763029,0.04515795,28465.0,28464.0,0.00806964]
[1680698763282,0.05115795,28465.0,28464.0,0.00806964]
[1680698763487,0.04515795,28465.0,28464.0,0.00806964]
[1680698764038,0.05115795,28465.0,28464.0,0.00360875]
[1680698764496,0.04515795,28465.0,28464.0,0.00354557]
[1680698764898,0.04515795,28465.0,28460.0,0.0217]
[1680698765106,0.05993995,28465.0,28461.0,0.44124338]
[1680698765468,0.05115795,28465.0,28464.0,0.0821]
[1680698765672,0.05115795,28465.0,28464.0,0.56854756]
[1680698766099,0.00010531,28473.0,28464.0,0.56854756]
[1680698766307,0.00878,28474.0,28466.0,0.0815]
[1680698766488,0.00878,28474.0,28467.0,0.08653282]
[1680698766714,0.00888431,28475.0,28467.0,0.08653282]
[1680698766920,0.07562107,28472.0,28467.0,0.08671282]
[1680698767127,0.07562107,28472.0,28470.0,0.0034]
[1680698767954,0.36349056,28474.0,28470.0,0.0034]
[1680698768163,0.016285,28473.0,28470.0,0.0034]
[1680698768365,0.00878,28473.0,28470.0,0.0034]
[1680698768771,0.36311956,28472.0,28470.0,0.0034]
[1680698768997,0.44174065,28472.0,28470.0,0.0044]
[1680698769208,0.43874065,28472.0,28470.0,0.0034]
[1680698769630,0.43874065,28472.0,28470.0,0.0044]
[1680698770275,0.43874065,28472.0,28470.0,0.0034]
[1680698770488,0.43974065,28472.0,28470.0,0.0044]
[1680698770702,0.43874065,28472.0,28470.0,0.0034]
[1680698770950,0.44752065,28472.0,28470.0,0.0034]
[1680698771794,0.44952065,28472.0,28470.0,0.0044]
[1680698772032,0.44752065,28472.0,28470.0,0.0034]
[1680698772239,0.44852065,28472.0,28470.0,0.0044]
[1680698775788,0.43974065,28472.0,28470.0,0.0044]
[1680698776222,0.08503009,28472.0,28470.0,0.0044]
[1680698776433,0.07662109,28472.0,28470.0,0.0044]
[1680698776865,0.07662109,28472.0,28470.0,0.00446]
[1680698777076,0.001,28472.0,28470.0,0.00458]
[1680698777286,0.00087716,28472.0,28470.0,0.0044]
[1680698777955,0.07674151,28471.0,28470.0,0.0034]
[1680698778934,0.07774151,28471.0,28470.0,0.0044]
[1680698779135,0.07674151,28471.0,28470.0,0.0034]
[1680698779371,0.07774151,28471.0,28470.0,0.0044]
[1680698780636,0.07674151,28471.0,28470.0,0.0034]
[1680698780820,0.08560751,28471.0,28470.0,0.0044]
[1680698781702,0.08460751,28471.0,28470.0,0.0034]
[1680698781911,0.08560751,28471.0,28470.0,0.0044]
[1680698784662,0.09438751,28471.0,28470.0,0.0044]
[1680698785889,0.08560751,28471.0,28470.0,0.0044]
[1680698787160,0.53079807,28471.0,28470.0,0.0044]
[1680698787584,0.53068899,28471.0,28470.0,0.0044]
[1680698788021,0.08549843,28471.0,28470.0,0.0034]
[1680698788229,0.08549843,28471.0,28469.0,0.08395679]
[1680698788230,0.07663243,28471.0,28469.0,0.08395679]
[1680698788440,0.08363243,28471.0,28470.0,0.0031]
[1680698788850,0.08363243,28471.0,28469.0,0.03705679]
[1680698789057,0.08363243,28471.0,28470.0,0.0017]
[1680698789272,0.07663243,28471.0,28470.0,0.0017]
[1680698789887,0.09100337,28474.0,28470.0,0.0017]
[1680698790097,0.007,28471.0,28470.0,0.0017]
[1680698790300,0.36361393,28473.0,28470.0,0.0017]
[1680698790476,0.001,28471.0,28470.0,0.0027]
[1680698790675,0.36361393,28473.0,28470.0,0.0017]
[1680698790908,0.08450265,28472.0,28470.0,0.0017]
[1680698791117,0.007,28471.0,28470.0,0.0017]
[1680698791240,0.01578,28471.0,28470.0,0.0017]
[1680698791835,0.44673137,28471.0,28470.0,0.0017]
[1680698792036,0.46009856,28471.0,28470.0,0.0017]
[1680698792240,0.54299985,28471.0,28470.0,0.0017]
[1680698792439,0.48822156,28471.0,28470.0,0.0017]
[1680698792642,0.48822156,28471.0,28470.0,0.0027]
[1680698792934,0.48834493,28471.0,28470.0,0.0017]
[1680698793682,0.49534493,28471.0,28470.0,0.0017]
[1680698793885,0.48834493,28471.0,28470.0,0.0017]
[1680698794094,1.50728174,28471.0,28470.0,0.0017]
[1680698794300,1.50728174,28471.0,28463.0,0.12605518]
[1680698794512,0.0814,28465.0,28462.0,0.29402876]
[1680698794715,0.14189681,28464.0,28463.0,0.12593518]
[1680698794951,0.0814,28465.0,28463.0,0.12611518]
[1680698795160,0.0814,28465.0,28463.0,0.12593518]
[1680698795979,0.07576751,28464.0,28463.0,0.12593518]
[1680698796714,0.07576751,28464.0,28463.0,0.12605518]
[1680698796936,0.07776751,28464.0,28463.0,0.12605518]
[1680698797150,1.24932283,28464.0,28462.0,0.00018]
[1680698797405,0.81891056,28463.0,28460.0,0.0217]
[1680698797611,1.03701056,28461.0,28460.0,0.0217]
[1680698797819,1.35441693,28461.0,28460.0,0.0217]
[1680698798037,1.35418148,28461.0,28460.0,0.0217]
[1680698798648,0.35459848,28461.0,28460.0,0.10823282]
[1680698798843,0.35459848,28461.0,28460.0,0.0217]
[1680698799475,0.38159848,28461.0,28460.0,0.0217]
[1680698799679,0.35459848,28461.0,28460.0,0.0217]
[1680698799879,0.4296704,28461.0,28460.0,0.0217]
[1680698800551,0.4384534,28461.0,28460.0,0.0217]
[1680698801494,0.49227778,28461.0,28460.0,0.0217]
[1680698801704,0.4384534,28461.0,28460.0,0.0217]
[1680698802532,0.5261534,28461.0,28460.0,0.0217]
[1680698802958,0.5261534,28461.0,28460.0,0.01419281]
[1680698803174,1.1608924,28461.0,28460.0,0.01419281]
[1680698803383,1.30326408,28461.0,28460.0,0.01419281]
[1680698803598,1.59726408,28461.0,28460.0,0.01419281]
[1680698803834,1.70506408,28461.0,28460.0,0.01419281]
[1680698804037,1.88074208,28461.0,28460.0,0.00677946]
[1680698804241,2.03074208,28461.0,28460.0,0.00677946]
[1680698804657,1.82906408,28461.0,28460.0,0.00677946]
[1680698805112,0.5187,28460.0,28459.0,0.0218]
[1680698805327,1.40759956,28460.0,28459.0,0.0218]
[1680698805539,1.96872011,28460.0,28459.0,0.0218]
[1680698805959,1.96782011,28460.0,28459.0,0.0218]
[1680698806180,2.05963612,28460.0,28459.0,0.0145864]
[1680698806386,2.03703612,28460.0,28459.0,0.0145864]
[1680698806590,2.08154234,28460.0,28459.0,0.0145864]
[1680698807008,2.14499421,28460.0,28459.0,0.00750922]
[1680698808113,0.37571251,28460.0,28459.0,0.08714191]
[1680698808340,0.15966788,28460.0,28459.0,0.08714191]
[1680698808567,0.15966788,28460.0,28459.0,0.00060909]
[1680698808821,0.13266788,28460.0,28459.0,0.00060909]
[1680698809037,0.15266788,28460.0,28459.0,0.00060909]
[1680698809248,0.13266788,28460.0,28459.0,0.00060909]
[1680698811990,0.12826788,28460.0,28458.0,0.01790909]
[1680698813025,0.12926788,28460.0,28458.0,0.02090909]
[1680698815964,0.14308541,28460.0,28458.0,0.02090909]
[1680698816183,0.12926788,28460.0,28458.0,0.02090909]
[1680698817512,0.12926788,28460.0,28459.0,0.00033]
[1680698818354,0.12826788,28460.0,28459.0,0.00033]
[1680698818575,0.48297844,28460.0,28459.0,0.00033]
[1680698818791,0.12826788,28460.0,28459.0,0.00033]
[1680698819301,0.12814877,28460.0,28459.0,0.00033]
[1680698819956,0.06347514,28460.0,28459.0,0.00033]
[1680698820210,0.008783,28463.0,28459.0,0.00033]
[1680698820435,0.35471056,28462.0,28459.0,0.00033]
[1680698821716,0.00012337,28463.0,28459.0,0.00033]
[1680698821933,0.35471056,28463.0,28459.0,0.00033]
[1680698822345,0.36349356,28463.0,28459.0,0.00033]
[1680698822565,0.08182337,28464.0,28459.0,0.08686282]
[1680698822800,0.00012337,28466.0,28460.0,0.16803282]
[1680698823006,0.00012337,28466.0,28461.0,0.08653282]
[1680698823007,0.35471056,28466.0,28461.0,0.08653282]
[1680698823214,0.00012337,28466.0,28462.0,0.08653282]
[1680698823428,0.3906378,28469.0,28463.0,0.0055]
[1680698823429,0.00012337,28467.0,28463.0,0.0055]
[1680698823637,0.36334836,28469.0,28463.0,0.09203282]
[1680698823874,0.35471056,28469.0,28464.0,0.08653282]
[1680698824075,0.35483393,28469.0,28464.0,0.08653282]
[1680698824278,0.00012337,28469.0,28464.0,0.08653282]
[1680698824485,0.008781,28470.0,28464.0,0.08653282]
[1680698824699,0.35471056,28470.0,28464.0,0.08163282]
[1680698824917,0.35477056,28470.0,28464.0,0.08163282]
[1680698825152,0.35483393,28470.0,28464.0,0.08163282]
[1680698825358,0.003,28469.0,28464.0,0.08463282]
[1680698825566,0.00012337,28469.0,28463.0,0.0876]
[1680698825778,0.14189681,28469.0,28463.0,0.0876]
[1680698825986,0.14202018,28469.0,28464.0,0.003]
[1680698826201,0.00012337,28469.0,28463.0,0.0876]
[1680698826408,0.14196018,28469.0,28463.0,0.16923282]
[1680698826618,0.14189681,28469.0,28463.0,0.16923282]
[1680698827042,0.05083401,28468.0,28463.0,0.0876]
[1680698827507,0.05083401,28468.0,28464.0,0.003]
[1680698827733,0.05083401,28468.0,28463.0,0.0876]
[1680698828189,0.05083401,28468.0,28463.0,0.0906]
[1680698828444,0.05083401,28468.0,28463.0,0.0876]
[1680698828688,0.05383401,28468.0,28463.0,0.0876]
[1680698828914,0.05083401,28468.0,28463.0,0.0876]
[1680698829134,0.05383401,28468.0,28463.0,0.0906]
[1680698830031,0.05371782,28468.0,28463.0,0.0906]
[1680698830472,0.05071782,28468.0,28463.0,0.0876]
[1680698830678,0.05371782,28468.0,28463.0,0.0906]
[1680698830910,0.54732519,28468.0,28463.0,0.0055]
[1680698831134,0.73473619,28468.0,28463.0,0.0085]
[1680698831850,0.58983938,28468.0,28463.0,0.0055]
[1680698832088,0.59283938,28468.0,28463.0,0.0085]
[1680698832341,0.59283938,28468.0,28463.0,0.08713282]
[1680698832342,0.40542838,28468.0,28463.0,0.08713282]
[1680698832570,0.05949982,28468.0,28463.0,0.16941282]
[1680698832813,0.05949982,28468.0,28463.0,0.08778]
[1680698833061,0.05949882,28468.0,28464.0,0.0819]
[1680698833310,0.05949882,28468.0,28464.0,0.08208]
[1680698833555,0.06049882,28468.0,28464.0,0.08208]
[1680698833767,0.05949882,28468.0,28464.0,0.08208]
[1680698833987,0.06249882,28468.0,28466.0,0.0056]
[1680698834200,0.05949882,28468.0,28466.0,0.0056]
[1680698834446,0.06249882,28468.0,28466.0,0.0056]
[1680698834710,0.05371782,28468.0,28466.0,0.0056]
[1680698834958,0.05071782,28468.0,28467.0,0.07761883]
[1680698835168,0.05171782,28468.0,28467.0,0.07761883]
[1680698835652,0.05171782,28468.0,28467.0,0.08311883]
[1680698835869,0.05171782,28468.0,28467.0,0.49118639]
[1680698836090,0.001,28468.0,28467.0,0.57276639]
[1680698836308,2.0,28469.0,28468.0,0.312]
[1680698836527,2.0,28469.0,28468.0,3.23431638]
[1680698836747,1.6899,28469.0,28468.0,3.24978999]
[1680698836954,1.6899,28469.0,28468.0,3.29171874]
[1680698837164,1.6899,28469.0,28468.0,2.19171874]
[1680698837378,1.6929,28469.0,28468.0,3.2525592]
[1680698837594,0.0218,28476.0,28470.0,0.3687]
[1680698837814,0.0218,28476.0,28469.0,0.15]
[1680698837815,0.0218,28476.0,28475.0,0.0821]
[1680698838030,0.0218,28476.0,28475.0,0.57167838]
[1680698838260,0.0218,28476.0,28475.0,0.49004556]
[1680698838718,0.0218,28476.0,28475.0,0.49544556]
[1680698839110,0.0248,28476.0,28475.0,0.50144556]
[1680698840026,0.0248,28476.0,28475.0,0.95154556]
[1680698840247,0.0248,28476.0,28475.0,1.26004556]
[1680698840704,0.0248,28476.0,28475.0,1.61234556]
[1680698840915,0.02168492,28476.0,28475.0,1.60634556]
[1680698841102,0.02168492,28476.0,28475.0,1.75634556]
[1680698841370,0.02168492,28476.0,28475.0,2.67854556]
[1680698841586,0.02398,28480.0,28478.0,0.3687]
[1680698841813,0.02398,28480.0,28479.0,6.84741756]
[1680698842665,0.02498,28480.0,28479.0,6.87541756]
[1680698843992,0.02498,28480.0,28479.0,6.88071756]
[1680698844215,0.02498,28480.0,28479.0,7.23301756]
[1680698844640,0.02498,28480.0,28479.0,7.26101756]
[1680698844641,0.02598,28480.0,28479.0,7.26101756]
[1680698844853,0.02398,28480.0,28479.0,7.20501756]
[1680698845896,0.02498,28480.0,28479.0,7.23301756]
[1680698846128,0.02398,28480.0,28479.0,7.20501756]
[1680698846349,0.02498,28480.0,28479.0,7.23301756]
[1680698847012,0.02498,28480.0,28479.0,7.22451756]
[1680698847224,0.02498,28480.0,28479.0,6.84421756]
[1680698847403,0.02398,28480.0,28479.0,6.39401756]
[1680698847651,0.02498,28480.0,28479.0,6.26386611]
[1680698847866,0.02398,28480.0,28479.0,6.71466611]
[1680698848109,0.02498,28480.0,28479.0,6.74266611]
[1680698848320,0.02398,28480.0,28479.0,6.71466611]
[1680698848533,0.02498,28480.0,28479.0,6.74266611]
[1680698848742,0.02498,28480.0,28479.0,6.75116611]
[1680698849397,0.02498,28480.0,28479.0,6.38246611]
[1680698849785,0.02498,28480.0,28479.0,6.75116611]
[1680698854687,0.02498,28480.0,28479.0,6.66906611]
[1680698855696,0.02498,28480.0,28479.0,6.29186611]
[1680698855914,0.02498,28480.0,28479.0,6.02508656]
[1680698860936,0.02498,28480.0,28479.0,6.01978656]
[1680698861456,0.02498,28480.0,28479.0,6.47908656]
[1680698863621,0.02498,28480.0,28479.0,6.39698656]
[1680698865224,0.02498,28480.0,28479.0,6.01978656]
[1680698866679,0.02498,28480.0,28479.0,6.47868656]
[1680698868772,0.02498,28480.0,28479.0,6.77868656]
[1680698869826,0.02498,28480.0,28479.0,6.86008656]
[1680698870028,0.02498,28480.0,28479.0,7.21238656]
[1680698870444,0.02498,28480.0,28479.0,8.71238656]
[1680698870666,0.02398,28496.0,28493.0,0.3687]
[1680698870906,0.02478,28500.0,28480.0,0.02498]
[1680698870907,0.02478,28500.0,28498.0,0.9791]
[1680698871127,0.3207,28515.0,28505.0,1.1]
[1680698871128,0.01696999,28508.0,28505.0,1.1]
[1680698871339,0.01,28516.0,28515.0,0.4]
[1680698871557,6e-05,28515.0,28513.0,0.00018]
[1680698871778,0.00137038,28527.0,28516.0,3.58]
[1680698871779,0.00881801,28525.0,28516.0,3.58]
[1680698872005,0.5,28519.0,28517.0,0.08163282]
[1680698872223,0.5,28519.0,28501.0,0.3523]
[1680698872224,0.52677656,28518.0,28514.0,0.00018]
[1680698872441,0.5,28519.0,28507.0,0.3523]
[1680698872442,0.35471056,28517.0,28507.0,0.3523]
[1680698872655,0.35471056,28517.0,28515.0,0.028]
[1680698872656,0.45389681,28516.0,28515.0,0.028]
[1680698872864,0.45389681,28516.0,28508.0,0.08163282]
[1680698872865,0.43772056,28516.0,28508.0,0.08163282]
[1680698873094,0.43772056,28516.0,28505.0,0.35477056]
[1680698873095,0.082,28512.0,28505.0,0.43634338]
[1680698873313,0.082,28507.0,28502.0,4.53018]
[1680698873569,0.35471056,28505.0,28502.0,4.53]
[1680698873773,0.35471056,28505.0,28499.0,6e-05]
[1680698873774,0.008771,28502.0,28499.0,0.00018]
[1680698873988,0.50537837,28501.0,28494.0,0.01830725]
[1680698874207,0.0821,28497.0,28494.0,0.01830725]
[1680698874433,0.14189681,28496.0,28494.0,0.01830725]
[1680698874858,0.14189681,28496.0,28495.0,0.3629]
[1680698875075,0.03303764,28496.0,28495.0,0.3629]
[1680698876167,0.08161,28498.0,28495.0,0.3909]
[1680698876379,0.0814,28498.0,28495.0,0.3909]
[1680698877029,0.08231,28499.0,28495.0,0.3909]
[1680698877253,0.00021,28499.0,28495.0,0.3629]
[1680698877470,0.00021,28499.0,28496.0,0.35471056]
[1680698877676,0.00021,28499.0,28496.0,0.08163282]
[1680698877887,0.00021,28499.0,28491.0,0.15]
[1680698877888,0.02408001,28500.0,28493.0,0.00018]
[1680698878104,0.02408001,28500.0,28497.0,0.3813]
[1680698878105,0.16576682,28500.0,28497.0,0.3813]
[1680698878430,0.02408001,28500.0,28497.0,0.3813]
[1680698878642,0.02387001,28500.0,28497.0,0.3813]
[1680698878853,0.02387001,28500.0,28498.0,0.35471056]
[1680698879057,0.02387001,28500.0,28498.0,0.25471056]
[1680698879058,0.02408001,28500.0,28498.0,0.25471056]
[1680698879263,0.02387001,28500.0,28498.0,0.25471056]
[1680698879475,0.02387001,28500.0,28498.0,0.85226338]
[1680698879676,0.02387001,28500.0,28499.0,0.7645]
[1680698879884,0.02387001,28500.0,28499.0,1.26921056]
[1680698880508,0.02387001,28500.0,28499.0,1.41681056]
[1680698880924,0.02387001,28500.0,28499.0,1.47985056]
[1680698881135,0.02387001,28500.0,28499.0,2.13215056]
[1680698881350,0.02387001,28500.0,28499.0,2.10415056]
[1680698881564,1e-08,28500.0,28499.0,2.74255056]
[1680698881769,1e-08,28500.0,28499.0,3.07965056]
[1680698881982,1e-08,28500.0,28499.0,3.10765056]
[1680698882192,1e-08,28500.0,28499.0,3.19105365]
[1680698882411,1e-08,28500.0,28499.0,3.33360573]
[1680698882630,0.00021,28513.0,28506.0,0.15]
[1680698882846,0.00021,28513.0,28512.0,0.1476]
[1680698883068,0.02387001,28519.0,28512.0,0.1476]
[1680698883069,0.00021,28514.0,28512.0,0.96114338]
[1680698883299,0.00021,28516.0,28513.0,0.43634338]
[1680698883516,0.02387001,28519.0,28513.0,0.43634338]
[1680698883517,0.00021,28518.0,28514.0,0.6687]
[1680698883763,0.02387001,28519.0,28517.0,0.5163]
[1680698883979,0.02387001,28519.0,28518.0,0.95504338]
[1680698884198,0.02387001,28519.0,28518.0,0.96354338]
[1680698884661,0.02387001,28519.0,28518.0,1.91041056]
[1680698884882,0.02387001,28519.0,28518.0,2.13831678]
[1680698885338,0.00021,28525.0,28524.0,1.1]
[1680698885553,0.0274391,28528.0,28524.0,1.1]
[1680698885554,0.0274391,28528.0,28527.0,2.0791]
[1680698885778,0.0274391,28528.0,28527.0,2.99728338]
[1680698886005,0.0274391,28528.0,28527.0,1.26605056]
[1680698886218,0.0274391,28528.0,28527.0,1.06481056]
[1680698886479,0.0274391,28528.0,28527.0,0.71251056]
[1680698886688,0.0274391,28528.0,28527.0,0.74051056]
[1680698886896,0.0274391,28528.0,28527.0,0.74901056]
[1680698887108,0.0274391,28528.0,28527.0,3.18174338]
[1680698887345,0.00021,28537.0,28532.0,1.1]
[1680698887561,0.00021,28542.0,28535.0,0.5163]
[1680698887775,0.00021,28542.0,28538.0,0.3687]
[1680698887992,0.00021,28542.0,28539.0,0.43634338]
[1680698888203,0.00021,28542.0,28540.0,0.08163282]
[1680698888415,0.00021,28546.0,28541.0,0.33084055]
[1680698888643,0.14782268,28547.0,28542.0,0.08163282]
[1680698889961,0.00022268,28547.0,28544.0,0.35483056]
[1680698890184,0.00022268,28547.0,28544.0,0.35471056]
[1680698890404,0.00022268,28547.0,28544.0,0.38271056]
[1680698890620,0.00022268,28547.0,28544.0,0.35471056]
[1680698890835,0.00022268,28547.0,28545.0,0.028]
[1680698891051,0.00022268,28547.0,28546.0,0.35471056]
[1680698891735,0.00022268,28547.0,28546.0,0.65081056]
[1680698891945,0.00022268,28547.0,28546.0,0.65931056]
[1680698892603,0.00022268,28547.0,28546.0,0.66081056]
[1680698892852,0.00022268,28547.0,28546.0,0.68881056]
[1680698893071,0.00022268,28547.0,28546.0,0.98881056]
[1680698893283,0.00022268,28547.0,28546.0,1.52351056]
[1680698893500,2.68e-06,28547.0,28546.0,1.60405678]
[1680698893722,2.68e-06,28547.0,28546.0,2.16235678]
[1680698893938,0.0286283,28555.0,28550.0,1.1]
[1680698894155,0.0286283,28555.0,28551.0,0.44484338]
[1680698894365,0.01610977,28555.0,28554.0,0.35471056]
[1680698894573,0.01610977,28555.0,28554.0,0.36321056]
[1680698894788,0.01610977,28555.0,28554.0,0.44484338]
[1680698895005,0.01610977,28555.0,28554.0,0.36321056]
[1680698895454,9.77e-06,28555.0,28554.0,1.80036756]
[1680698895662,9.77e-06,28555.0,28554.0,2.15266756]
[1680698896296,9.77e-06,28558.0,28557.0,1.5]
[1680698896514,9.77e-06,28558.0,28557.0,2.19518356]
[1680698896752,9.77e-06,28558.0,28557.0,2.86498978]
[1680698897172,9.77e-06,28558.0,28557.0,2.84748356]
[1680698897382,9.77e-06,28558.0,28557.0,2.87548356]
[1680698900397,0.02387001,28567.0,28564.0,0.39255956]
[1680698900618,0.02387001,28567.0,28566.0,0.038883]
[1680698900821,0.02387001,28567.0,28566.0,0.39359356]
[1680698901031,0.02408001,28567.0,28566.0,0.35471056]
[1680698901443,0.02408001,28567.0,28566.0,0.39076156]
[1680698902298,0.02387001,28567.0,28566.0,0.41876156]
[1680698902504,0.02408001,28567.0,28566.0,0.41876156]
[1680698902937,0.02408001,28567.0,28566.0,0.028]
[1680698903162,0.017497,28576.0,28567.0,0.15]
[1680698903382,0.017497,28576.0,28568.0,0.11815882]
[1680698903383,0.1476,28574.0,28568.0,0.11815882]
[1680698903594,0.00021,28578.0,28569.0,0.15]
[1680698903802,0.017492,28585.0,28571.0,0.1476]
[1680698903803,0.008746,28582.0,28571.0,0.1476]
[1680698904019,0.008746,28582.0,28572.0,0.47419238]
[1680698904249,0.1476,28583.0,28573.0,0.0085]
[1680698904476,0.1476,28583.0,28574.0,0.47449938]
[1680698904684,0.1476,28583.0,28575.0,0.035715]
[1680698904892,0.1476,28583.0,28576.0,0.43634338]
[1680698905110,0.056346,28583.0,28576.0,0.43652338]
[1680698905331,0.1464,28586.0,28576.0,0.43652338]
[1680698905569,0.008746,28584.0,28577.0,0.15]
[1680698905851,0.28829681,28586.0,28578.0,0.43634338]
[1680698905852,0.29704181,28586.0,28578.0,0.43634338]
[1680698906071,0.02387001,28587.0,28578.0,4.55652338]
[1680698906292,0.02387001,28587.0,28580.0,1.0]
[1680698906501,0.02387001,28587.0,28581.0,0.65887638]
[1680698906719,0.02387001,28587.0,28582.0,0.39189956]
[1680698906939,0.02387001,28587.0,28583.0,0.12716782]
[1680698907202,0.02387001,28587.0,28584.0,0.53972356]
[1680698907412,1e-08,28587.0,28586.0,0.037286]
[1680698907640,1e-08,28587.0,28586.0,0.39199656]
[1680698907848,1e-08,28587.0,28586.0,1.47599656]
[1680698908093,1e-08,28587.0,28586.0,0.47599656]
[1680698908288,0.008743,28592.0,28590.0,3.21980199]
[1680698908505,0.008952,28595.0,28591.0,0.037394]
[1680698908724,0.008952,28595.0,28591.0,0.38997055]
[1680698908725,0.00012,28595.0,28591.0,0.38997055]
[1680698908942,0.034962,28603.0,28592.0,0.118825]
[1680698908943,0.008741,28599.0,28592.0,0.118825]
[1680698909163,0.008741,28599.0,28590.0,3.30143481]
[1680698909164,0.008743,28594.0,28590.0,3.30143481]
[1680698909382,0.008741,28598.0,28591.0,0.039406]
[1680698909647,0.2739,28601.0,28592.0,0.43634338]
[1680698909858,0.35471056,28601.0,28592.0,0.16569282]
[1680698910070,0.00021,28602.0,28593.0,0.35471056]
[1680698910291,0.02387001,28604.0,28594.0,0.11829282]
[1680698910499,0.02387001,28604.0,28597.0,1.0]
[1680698910733,0.03107201,28604.0,28598.0,0.08163282]
[1680698910940,0.38557257,28604.0,28598.0,0.08163282]
[1680698911152,0.02387001,28604.0,28598.0,0.08163282]
[1680698911369,0.01887001,28604.0,28600.0,1.0]
[1680698911589,0.00021,28612.0,28601.0,0.11894682]
[1680698911805,0.35471056,28611.0,28601.0,0.52028338]
[1680698912056,0.007199,28615.0,28601.0,0.52028338]
[1680698912057,0.00021,28613.0,28602.0,0.47444856]
[1680698912494,0.00021,28615.0,28604.0,1.0]
[1680698912497,0.02387001,28616.0,28610.0,1.2739]
[1680698912498,0.02408001,28616.0,28610.0,1.2739]
[1680698912709,1e-08,28616.0,28611.0,0.037376]
[1680698912924,1e-08,28616.0,28611.0,0.121256]
[1680698913146,0.03648731,28622.0,28613.0,0.0137]
[1680698913147,0.03635412,28622.0,28613.0,0.0137]
[1680698913376,0.35471056,28621.0,28614.0,0.08163282]
[1680698913607,0.35471056,28615.0,28611.0,0.00018]
[1680698913830,0.2739,28616.0,28590.0,1.1]
[1680698913831,0.04295,28614.0,28596.0,6.06]
[1680698914057,0.00021,28616.0,28601.0,1.0]
[1680698914286,0.24357345,28620.0,28599.0,0.00018]
[1680698914287,0.188822,28619.0,28599.0,0.00018]
[1680698914503,0.35471056,28612.0,28600.0,0.07910075]
[1680698914736,0.006991,28608.0,28601.0,0.07910075]
[1680698914950,0.14189681,28607.0,28599.0,0.08412]
[1680698915163,0.30021,28611.0,28599.0,0.08394]
[1680698915164,0.00021,28610.0,28599.0,0.08394]
[1680698915377,0.3,28611.0,28600.0,1.15]
[1680698915589,0.3,28611.0,28600.0,1.15018]
[1680698915799,0.51833637,28610.0,28601.0,0.16304075]
[1680698916022,0.322546,28609.0,28601.0,0.07928075]
[1680698916259,2.08055562,28613.0,28603.0,0.35471056]
[1680698916489,9e-05,28617.0,28615.0,1.0]
[1680698916717,0.20393971,28620.0,28619.0,1.1]